bitfinex/quotes_BTCUSD_20250617
["timestamp","ask_amount","ask_price","bid_price","bid_amount"]
[1750167551651,0.73099111,105750.0,105740.0,0.27165704]
[1750167551868,0.43099111,105750.0,105740.0,0.28111357]
[1750167552083,0.44990309,105750.0,105740.0,0.28111357]
[1750167552297,0.449903,105750.0,105740.0,0.28111357]
[1750167552520,0.43099111,105750.0,105740.0,0.28111357]
[1750167552758,0.02836672,105750.0,105740.0,0.28111357]
[1750167553174,0.04727861,105750.0,105740.0,0.28111357]
[1750167553383,0.63902891,105750.0,105740.0,0.28111357]
[1750167553601,0.45090362,105750.0,105740.0,0.28111357]
[1750167553813,0.43199137,105750.0,105740.0,0.28111357]
[1750167554281,0.72672259,105750.0,105740.0,0.20805722]
[1750167554500,0.52814104,105750.0,105740.0,0.21751411]
[1750167554715,0.53759721,105750.0,105740.0,0.22697082]
[1750167554931,0.51868505,105750.0,105740.0,0.30152735]
[1750167555158,0.42253583,105750.0,105740.0,0.23642735]
[1750167555377,0.41307976,105750.0,105740.0,0.30152735]
[1750167556037,0.43199102,105750.0,105740.0,0.30152735]
[1750167556272,0.41307976,105750.0,105740.0,0.30152735]
[1750167556738,0.001,105750.0,105740.0,0.46420735]
[1750167557222,0.301,105750.0,105740.0,0.46420735]
[1750167557465,0.3,105750.0,105740.0,0.46420735]
[1750167557937,0.3,105750.0,105740.0,0.46520735]
[1750167558586,0.00945465,105760.0,105750.0,0.28109299]
[1750167558818,0.4309887,105760.0,105750.0,0.28109299]
[1750167559043,0.70877265,105760.0,105750.0,0.21749299]
[1750167559349,0.70877265,105760.0,105750.0,0.20803736]
[1750167559597,0.68986326,105760.0,105750.0,0.20803745]
[1750167559798,0.61064191,105760.0,105750.0,0.20803745]
[1750167560027,0.61064191,105760.0,105750.0,0.22694916]
[1750167560308,0.61164191,105760.0,105750.0,0.18912529]
[1750167560597,0.01891162,105750.0,105740.0,0.20805633]
[1750167560799,0.64267156,105750.0,105740.0,0.20805687]
[1750167561052,0.22694952,105750.0,105740.0,0.2175134]
[1750167561302,0.41207993,105750.0,105740.0,0.2811134]
[1750167561537,0.01891117,105750.0,105740.0,0.2811134]
[1750167561757,0.02836698,105750.0,105740.0,0.2811134]
[1750167562036,0.03782297,105750.0,105740.0,0.2811134]
[1750167562304,0.93902873,105750.0,105740.0,0.2821134]
[1750167562555,0.73099128,105750.0,105740.0,0.2821134]
[1750167562848,0.72153547,105750.0,105740.0,0.2821134]
[1750167563056,0.3,105750.0,105740.0,0.2821134]
[1750167563497,0.30945546,105750.0,105740.0,0.2821134]
[1750167563721,0.3,105750.0,105740.0,0.2821134]
[1750167564662,0.03781968,105760.0,105750.0,0.28219299]
[1750167564899,0.01890939,105760.0,105750.0,0.28219299]
[1750167565129,0.02836431,105760.0,105750.0,0.28219299]
[1750167565338,0.4404438,105760.0,105750.0,0.28219299]
[1750167565553,0.0378195,105760.0,105750.0,0.28219299]
[1750167565736,0.4404438,105760.0,105750.0,0.28219299]
[1750167566221,0.0378195,105760.0,105750.0,0.28219299]
[1750167566469,0.06029648,105790.0,105770.0,0.27219749]
[1750167566677,0.03198241,105790.0,105780.0,0.44431113]
[1750167566900,0.43460671,105790.0,105780.0,0.27217818]
[1750167567167,0.59522067,105790.0,105780.0,0.20797836]
[1750167567388,0.60467309,105790.0,105780.0,0.37065854]
[1750167567608,0.60467309,105790.0,105780.0,0.19852514]
[1750167567826,0.6048149,105790.0,105780.0,0.20797863]
[1750167568272,0.54044225,105790.0,105780.0,0.2268848]
[1750167568498,0.43474852,105790.0,105780.0,0.2881848]
[1750167568929,0.44420049,105790.0,105780.0,0.2881848]
[1750167569365,0.45365273,105790.0,105780.0,0.2881848]
[1750167569609,0.45465273,105790.0,105780.0,0.2881848]
[1750167569831,0.46410515,105790.0,105780.0,0.2268848]
[1750167570049,0.46510524,105790.0,105780.0,0.2268848]
[1750167570265,0.06248085,105790.0,105780.0,0.2268848]
[1750167570486,0.46510515,105790.0,105780.0,0.2268848]
[1750167571139,0.03412422,105790.0,105780.0,0.2893848]
[1750167571356,0.04357619,105790.0,105780.0,0.2893848]
[1750167571572,0.05302834,105790.0,105780.0,0.2893848]
[1750167571827,0.45565264,105790.0,105780.0,0.2893848]
[1750167572443,0.47455757,105790.0,105780.0,0.2268848]
[1750167572701,0.46510506,105790.0,105780.0,0.2268848]
[1750167573135,0.47455757,105790.0,105780.0,0.2268848]
[1750167573359,0.66361135,105790.0,105780.0,0.21743185]
[1750167573587,0.47455757,105790.0,105780.0,0.38956471]
[1750167574010,0.66361197,105790.0,105780.0,0.38011176]
[1750167574224,0.47455819,105790.0,105780.0,0.38956471]
[1750167574446,0.67306465,105790.0,105780.0,0.20797863]
[1750167574713,0.00945385,105770.0,105760.0,0.26102839]
[1750167574928,0.41207815,105770.0,105760.0,0.45203306]
[1750167575362,0.21743167,105780.0,105770.0,0.21745214]
[1750167575582,0.72575131,105780.0,105770.0,0.21745222]
[1750167575802,0.82190053,105780.0,105770.0,0.2079982]
[1750167576020,0.71629818,105780.0,105770.0,0.2079982]
[1750167576241,0.71629818,105780.0,105770.0,0.21745231]
[1750167576450,0.50831919,105780.0,105770.0,0.29010616]
[1750167576661,0.01890581,105780.0,105770.0,0.29010616]
[1750167577117,0.02835903,105780.0,105770.0,0.29010616]
[1750167577354,0.02835903,105780.0,105770.0,0.29110616]
[1750167577542,0.04726574,105780.0,105770.0,0.29110616]
[1750167577792,0.44989004,105780.0,105770.0,0.29110616]
[1750167578025,0.68716268,105780.0,105770.0,0.2089982]
[1750167578249,0.61060266,105780.0,105770.0,0.3716382]
[1750167578906,0.60114935,105780.0,105770.0,0.3716382]
[1750167579130,0.59169595,105780.0,105770.0,0.38109249]
[1750167579341,0.18907165,105780.0,105770.0,0.20899838]
[1750167579558,0.18907165,105780.0,105770.0,0.38109249]
[1750167579771,0.41207743,105780.0,105770.0,0.46150045]
[1750167579984,0.4309836,105780.0,105770.0,0.46149983]
[1750167580195,0.440437,105780.0,105770.0,0.46149983]
[1750167580411,0.43098369,105780.0,105770.0,0.46149983]
[1750167580846,0.62005606,105780.0,105770.0,0.22514]
[1750167581118,0.62005606,105780.0,105770.0,0.37163838]
[1750167581330,0.62005606,105780.0,105770.0,0.39054669]
[1750167581540,0.44043691,105780.0,105770.0,0.46480001]
[1750167581759,0.44043691,105780.0,105770.0,0.30216001]
[1750167581975,0.62950856,105780.0,105770.0,0.28325222]
[1750167582214,0.6200557,105780.0,105770.0,0.28325222]
[1750167582646,0.60114935,105780.0,105770.0,0.19954391]
[1750167582863,0.60114935,105780.0,105770.0,0.20899811]
[1750167583945,0.60114935,105780.0,105770.0,0.2089982]
[1750167584163,0.60114935,105780.0,105770.0,0.22790642]
[1750167584377,0.60114935,105780.0,105770.0,0.2184524]
[1750167584598,0.4215302,105780.0,105770.0,0.30236036]
[1750167584865,0.0189059,105780.0,105770.0,0.30236036]
[1750167585085,0.04157628,105790.0,105780.0,0.28243113]
[1750167585306,0.06048085,105790.0,105780.0,0.44503113]
[1750167585523,0.05102843,105790.0,105780.0,0.44503113]
[1750167585957,0.06048085,105790.0,105780.0,0.44503113]
[1750167586179,0.06048094,105790.0,105780.0,0.44503113]
[1750167586405,0.46310524,105790.0,105780.0,0.44503113]
[1750167586621,0.46410524,105790.0,105780.0,0.44503113]
[1750167586832,0.06148094,105790.0,105780.0,0.44503113]
[1750167587052,0.04357619,105790.0,105780.0,0.44503113]
[1750167587265,0.45565264,105790.0,105780.0,0.44503113]
[1750167587931,0.04357619,105790.0,105780.0,0.44503113]
[1750167588373,0.05302834,105790.0,105780.0,0.44503113]
[1750167588843,0.92365237,105800.0,105790.0,0.19850637]
[1750167588844,1.10518592,105800.0,105790.0,0.19850637]
[1750167589061,1.20142768,105800.0,105790.0,0.19850637]
[1750167589489,1.19642768,105800.0,105790.0,0.19850637]
[1750167590146,1.22324683,105800.0,105790.0,0.20795888]
[1750167590362,1.22324683,105800.0,105790.0,0.21741121]
[1750167590580,1.22524683,105800.0,105790.0,0.21741121]
[1750167590796,1.22524683,105800.0,105790.0,0.27741121]
[1750167591334,0.82262253,105800.0,105790.0,0.27741121]
[1750167591557,1.03620834,105800.0,105790.0,0.28686327]
[1750167591779,0.00945215,105790.0,105780.0,0.42112478]
[1750167591997,0.42152896,105790.0,105780.0,0.44003113]
[1750167592716,0.42152887,105790.0,105780.0,0.44003113]
[1750167592942,0.42152851,105790.0,105780.0,0.44003113]
[1750167593382,0.42152851,105790.0,105780.0,0.44303113]
[1750167593610,0.43098084,105790.0,105780.0,0.44303113]
[1750167593819,0.02835654,105790.0,105780.0,0.44303113]
[1750167594028,0.43098084,105790.0,105780.0,0.44303113]
[1750167594452,0.03780905,105790.0,105780.0,0.44303113]
[1750167594669,0.43098084,105790.0,105780.0,0.44303113]
[1750167594887,0.42152851,105790.0,105780.0,0.44303113]
[1750167595319,1.03120789,105800.0,105790.0,0.22686309]
[1750167595528,1.24859863,105800.0,105790.0,0.29016309]
[1750167595741,1.23914738,105800.0,105790.0,0.28071103]
[1750167595956,0.74028061,105800.0,105790.0,0.28071103]
[1750167596409,0.53234139,105800.0,105790.0,0.29016309]
[1750167596623,0.04372157,105800.0,105790.0,0.29016309]
[1750167597062,0.02481915,105800.0,105790.0,0.29016309]
[1750167597969,0.03427014,105800.0,105790.0,0.29016309]
[1750167598181,0.02481915,105800.0,105790.0,0.29116309]
[1750167598394,0.02381915,105800.0,105790.0,0.29116309]
[1750167598855,0.73096954,105820.0,105810.0,0.27311922]
[1750167599075,0.00945027,105810.0,105800.0,0.27313904]
[1750167599295,0.42152511,105810.0,105800.0,0.45460173]
[1750167599510,0.43097574,105810.0,105800.0,0.45460173]
[1750167599729,0.43097574,105810.0,105800.0,0.44515056]
[1750167599953,0.61999379,105810.0,105800.0,0.4546019]
[1750167600224,0.6294446,105810.0,105800.0,0.46405315]
[1750167600468,0.62944523,105810.0,105800.0,0.44515056]
[1750167600685,0.61999469,105810.0,105800.0,0.44515056]
[1750167600904,0.60109325,105810.0,105800.0,0.23238761]
[1750167601128,0.60109325,105810.0,105800.0,0.39490761]
[1750167601353,0.00945063,105810.0,105800.0,0.41381065]
[1750167601561,0.01890099,105810.0,105800.0,0.29124182]
[1750167601784,0.01890099,105810.0,105800.0,0.45376182]
[1750167601997,0.01890099,105810.0,105800.0,0.29124182]
[1750167602214,0.43097601,105810.0,105800.0,0.45376182]
[1750167602433,0.72190211,105820.0,105810.0,0.20791922]
[1750167602656,0.39135088,105820.0,105810.0,0.27011922]
[1750167602878,0.60497492,105820.0,105810.0,0.27956949]
[1750167603094,0.595525,105820.0,105810.0,0.27956949]
[1750167603313,0.59552446,105820.0,105810.0,0.27956949]
[1750167603520,0.59552437,105820.0,105810.0,0.27956949]
[1750167603736,0.61050431,105830.0,105820.0,0.26939975]
[1750167603974,0.44089208,105830.0,105820.0,0.44136913]
[1750167604201,0.02881876,105830.0,105820.0,0.44136913]
[1750167604410,0.62987441,105830.0,105820.0,0.44136913]
[1750167604622,0.64517622,105830.0,105820.0,0.44136913]
[1750167604839,0.45619389,105830.0,105820.0,0.44136913]
[1750167605336,0.44674487,105830.0,105820.0,0.44136913]
[1750167605559,0.04412066,105830.0,105820.0,0.44136913]
[1750167605774,0.05456915,105830.0,105820.0,0.44136913]
[1750167605988,0.0451204,105830.0,105820.0,0.44136913]
[1750167606446,0.20790659,105820.0,105810.0,0.25391624]
[1750167606679,0.01889921,105820.0,105810.0,0.21736831]
[1750167606929,0.42152351,105820.0,105810.0,0.22681858]
[1750167607154,0.42152351,105820.0,105810.0,0.37984831]
[1750167607380,0.43097334,105820.0,105810.0,0.38929858]
[1750167607601,0.43097253,105820.0,105810.0,0.38929858]
[1750167607840,0.43097253,105820.0,105810.0,0.42089858]
[1750167608059,0.44042227,105820.0,105810.0,0.42089858]
[1750167608272,0.43097253,105820.0,105810.0,0.42089858]
[1750167608489,0.63887228,105820.0,105810.0,0.25841858]
[1750167608705,0.71328162,105820.0,105810.0,0.39029867]
[1750167609127,0.4404229,105820.0,105810.0,0.40074894]
[1750167609576,0.44987282,105820.0,105810.0,0.40074894]
[1750167610013,0.4404229,105820.0,105810.0,0.23826894]
[1750167610237,0.44987282,105820.0,105810.0,0.40070894]
[1750167610673,0.62942397,105820.0,105810.0,0.37235786]
[1750167610992,0.62942397,105820.0,105810.0,0.4007093]
[1750167611207,0.61997423,105820.0,105810.0,0.38180849]
[1750167611422,0.43097405,105820.0,105810.0,0.39125903]
[1750167611628,0.43097405,105820.0,105810.0,0.40070939]
[1750167611860,0.61997423,105820.0,105810.0,0.39125903]
[1750167612063,0.6105244,105820.0,105810.0,0.20991786]
[1750167612273,0.6105244,105820.0,105810.0,0.38180849]
[1750167612488,0.6105244,105820.0,105810.0,0.40070948]
[1750167612712,0.42152387,105820.0,105810.0,0.40070849]
[1750167612956,0.61052405,105820.0,105810.0,0.41290786]
[1750167613194,0.20789975,105820.0,105810.0,0.38180786]
[1750167613419,0.61052405,105820.0,105810.0,0.41350786]
[1750167613637,0.61997405,105820.0,105810.0,0.41350786]
[1750167613861,0.61997405,105820.0,105810.0,0.42295822]
[1750167614297,0.61997405,105820.0,105810.0,0.41350786]
[1750167614532,0.61052405,105820.0,105810.0,0.43240849]
[1750167614748,0.61052405,105820.0,105810.0,0.45485822]
[1750167614979,0.33123021,105820.0,105810.0,0.45485804]
[1750167615260,0.35957871,105820.0,105810.0,0.45485804]
[1750167615478,0.35957862,105820.0,105810.0,0.45485804]
[1750167615939,0.35012897,105820.0,105810.0,0.45485804]
[1750167616385,0.35957871,105820.0,105810.0,0.45485804]
[1750167616636,0.02522333,105830.0,105820.0,0.28889877]
[1750167616862,0.03467173,105830.0,105820.0,0.28889877]
[1750167617132,0.34700407,105830.0,105820.0,0.28889877]
[1750167617768,0.02522333,105830.0,105820.0,0.36447385]
[1750167618450,0.00147259,105830.0,105820.0,0.36447385]
[1750167618669,0.00147259,105830.0,105820.0,0.28889877]
[1750167619080,0.00247259,105830.0,105820.0,0.45129877]
[1750167619782,0.02662425,105830.0,105820.0,0.45129877]
[1750167619996,0.00247259,105830.0,105820.0,0.45129877]
[1750167620218,0.00047259,105830.0,105820.0,0.45129877]
[1750167620666,0.00047259,105830.0,105820.0,0.45229877]
[1750167621846,0.00147259,105830.0,105820.0,0.28989877]
[1750167622062,0.40351819,105830.0,105820.0,0.45229877]
[1750167622279,0.00147259,105830.0,105820.0,0.28989877]
[1750167622539,0.03546028,105830.0,105820.0,0.45229877]
[1750167622781,0.02601197,105830.0,105820.0,0.45225877]
[1750167623019,0.0109209,105830.0,105820.0,0.45225877]
[1750167623251,0.02036939,105830.0,105820.0,0.45225877]
[1750167623480,0.00147259,105830.0,105820.0,0.45225877]
[1750167623952,0.02981841,105830.0,105820.0,0.45225877]
[1750167624391,0.05466368,105830.0,105820.0,0.45225877]
[1750167625304,0.06411261,105830.0,105820.0,0.45225877]
[1750167625769,0.64569258,105830.0,105820.0,0.28044984]
[1750167625995,0.63624374,105830.0,105820.0,0.28044984]
[1750167626233,0.71876478,105830.0,105820.0,0.001]
[1750167626515,0.39406299,105830.0,105820.0,0.001]
[1750167626788,1.1314284,105830.0,105820.0,0.001]
[1750167627008,1.2814284,105830.0,105820.0,0.001]
[1750167627258,1.33243966,105830.0,105820.0,0.001]
[1750167627684,1.49479966,105830.0,105820.0,0.001]
[1750167628125,0.20791958,105810.0,105800.0,0.16236]
[1750167628343,0.70620694,105810.0,105800.0,0.3608477]
[1750167628564,0.70620694,105810.0,105800.0,0.3702994]
[1750167628772,0.70620694,105810.0,105800.0,0.37975092]
[1750167628987,0.30416134,105810.0,105800.0,0.37975101]
[1750167629200,0.70620694,105810.0,105800.0,0.37975101]
[1750167629418,0.70620694,105810.0,105800.0,0.39865378]
[1750167629630,0.70720694,105810.0,105800.0,0.39865378]
[1750167630072,0.70720694,105810.0,105800.0,0.39965378]
[1750167630296,0.51818817,105810.0,105800.0,0.39965316]
[1750167630510,0.54653979,105810.0,105800.0,0.39965316]
[1750167630728,0.71665739,105810.0,105800.0,0.38075074]
[1750167631010,0.71665739,105810.0,105800.0,0.39965351]
[1750167631439,0.52763934,105810.0,105800.0,0.39965298]
[1750167631653,0.72610829,105810.0,105800.0,0.39020181]
[1750167632098,0.72610829,105810.0,105800.0,0.38075047]
[1750167632316,0.30516152,105810.0,105800.0,0.37129904]
[1750167632535,0.70720712,105810.0,105800.0,0.37129904]
[1750167632992,0.70720712,105810.0,105800.0,0.20893904]
[1750167633205,0.69775631,105810.0,105800.0,0.001]
[1750167633430,0.69775631,105810.0,105800.0,0.3712594]
[1750167633864,0.69775631,105810.0,105800.0,0.38071101]
[1750167634094,0.29571071,105810.0,105800.0,0.38071101]
[1750167634304,0.69775631,105810.0,105800.0,0.38071101]
[1750167634548,0.69775631,105810.0,105800.0,0.2089394]
[1750167634811,0.96575463,105810.0,105800.0,0.001]
[1750167635035,0.98029548,105810.0,105800.0,0.001]
[1750167635266,1.01259548,105810.0,105800.0,0.001]
[1750167636621,1.35259548,105810.0,105800.0,0.001]
[1750167637069,1.35516626,105810.0,105800.0,0.001]
[1750167637306,1.19284626,105810.0,105800.0,0.001]
[1750167637514,1.34246608,105810.0,105800.0,0.001]
[1750167637733,1.50478608,105810.0,105800.0,0.001]
[1750167637969,1.10274048,105810.0,105800.0,0.001]
[1750167638184,1.50478608,105810.0,105800.0,0.001]
[1750167638648,1.50478608,105810.0,105800.0,0.19003591]
[1750167638649,0.94042048,105810.0,105800.0,0.19003591]
[1750167638870,0.39686158,105810.0,105800.0,0.27153922]
[1750167639089,0.4157623,105810.0,105800.0,0.2904419]
[1750167639320,0.4157623,105810.0,105800.0,0.29989307]
[1750167639545,0.41576221,105810.0,105800.0,0.29989307]
[1750167639766,0.24686158,105810.0,105800.0,0.29989307]
[1750167639997,0.25631176,105810.0,105800.0,0.29989307]
[1750167640449,0.25631176,105810.0,105800.0,0.46221307]
[1750167640450,0.26576212,105810.0,105800.0,0.46221307]
[1750167640669,0.47368152,105810.0,105800.0,0.4527619]
[1750167640882,0.89854238,105810.0,105800.0,0.46221307]
[1750167641101,0.70007352,105810.0,105800.0,0.46221307]
[1750167641313,0.70952433,105810.0,105800.0,0.46221307]
[1750167641532,0.61594975,105810.0,105800.0,0.46221307]
[1750167641766,0.8049678,105810.0,105800.0,0.46221307]
[1750167641982,0.79551762,105810.0,105800.0,0.45276199]
[1750167642479,0.79115748,105810.0,105800.0,0.001]
[1750167642710,1.49969142,105810.0,105800.0,0.001]
[1750167642932,1.59584064,105810.0,105800.0,0.001]
[1750167643374,2.04584064,105810.0,105800.0,0.001]
[1750167644051,2.09056064,105810.0,105800.0,0.001]
[1750167644514,2.11316024,105810.0,105800.0,0.001]
[1750167644739,2.26316024,105810.0,105800.0,0.001]
[1750167644951,2.02195854,105810.0,105800.0,0.001]
[1750167645380,2.02095854,105810.0,105800.0,0.001]
[1750167645627,2.02295854,105810.0,105800.0,0.001]
[1750167646059,2.02095854,105810.0,105800.0,0.001]
[1750167646306,0.3674105,105790.0,105780.0,0.3383002]
[1750167646524,0.8661215,105790.0,105780.0,0.3383002]
[1750167646747,0.85666953,105790.0,105780.0,0.33830029]
[1750167646972,0.85666953,105790.0,105780.0,0.34775378]
[1750167647201,0.84721729,105790.0,105780.0,0.13977508]
[1750167647426,0.84721729,105790.0,105780.0,0.26272514]
[1750167647657,0.84821729,105790.0,105780.0,0.26272514]
[1750167647891,0.84821729,105790.0,105780.0,0.0642]
[1750167648360,0.84821729,105790.0,105780.0,0.26272523]
[1750167648613,0.85966988,105790.0,105780.0,0.28163203]
[1750167648828,0.86912212,105790.0,105780.0,0.28163203]
[1750167649052,0.86912212,105790.0,105780.0,0.28163212]
[1750167649279,0.86912212,105790.0,105780.0,0.29108534]
[1750167650501,0.85966988,105790.0,105780.0,0.28163212]
[1750167650742,0.936914,105790.0,105780.0,0.0642]
[1750167650968,0.19852523,105780.0,105770.0,0.25298953]
[1750167651202,0.60099447,105780.0,105770.0,0.06404181]
[1750167651653,0.60099447,105780.0,105770.0,0.26258581]
[1750167651881,0.69723623,105780.0,105770.0,0.06404181]
[1750167652105,0.85947623,105780.0,105770.0,0.00014181]
[1750167652330,0.90591708,105780.0,105770.0,0.00014181]
[1750167652772,0.90591708,105780.0,105770.0,0.00114181]
[1750167653214,0.93881708,105780.0,105770.0,0.00114181]
[1750167653907,1.32353708,105780.0,105770.0,0.00114181]
[1750167654126,1.44228791,105780.0,105770.0,0.00114181]
[1750167656475,1.47053268,105780.0,105770.0,0.00114181]
[1750167656691,1.46953268,105780.0,105770.0,0.00114181]
[1750167656919,1.26257268,105780.0,105770.0,0.00114181]
[1750167657169,0.47029641,105780.0,105770.0,0.19023134]
[1750167657404,1.05368918,105780.0,105770.0,0.06314181]
[1750167657631,1.10698069,105780.0,105770.0,0.00114181]
[1750167657877,1.25047076,105780.0,105770.0,0.00114181]
[1750167658118,1.24547076,105780.0,105770.0,0.00014181]
[1750167658827,1.39547076,105780.0,105770.0,0.00014181]
[1750167659063,1.60039076,105780.0,105770.0,0.00014181]
[1750167659303,1.60439076,105780.0,105770.0,0.00014181]
[1750167659541,1.39089076,105780.0,105770.0,0.00014181]
[1750167659756,1.29374154,105780.0,105770.0,0.00014181]
[1750167659996,1.29074154,105780.0,105770.0,0.00014181]
[1750167660210,1.29874154,105780.0,105770.0,0.00014181]
[1750167660664,1.29374154,105780.0,105770.0,0.00014181]
[1750167660919,1.39289076,105780.0,105770.0,0.00014181]
[1750167662583,1.18597076,105780.0,105770.0,0.00014181]
[1750167662878,1.39289076,105780.0,105770.0,0.00014181]
[1750167663134,1.08982154,105780.0,105770.0,0.00014181]
[1750167663383,1.08982154,105780.0,105770.0,0.25113134]
[1750167663591,1.25960918,105780.0,105770.0,0.2700401]
[1750167663842,0.91960918,105780.0,105770.0,0.28894806]
[1750167664046,0.94360361,105780.0,105770.0,0.2700401]
[1750167664293,0.52870471,105780.0,105770.0,0.2794943]
[1750167664506,0.02490599,105780.0,105770.0,0.29840226]
[1750167664747,0.01545286,105780.0,105770.0,0.29840226]
[1750167664967,0.006,105780.0,105770.0,0.29840226]
[1750167665483,0.003,105780.0,105770.0,0.29840226]
[1750167665704,0.01445277,105780.0,105770.0,0.46056226]
[1750167665923,0.005,105780.0,105770.0,0.46056226]
[1750167666362,0.303,105780.0,105770.0,0.46056226]
[1750167666573,0.3,105780.0,105770.0,0.46056226]
[1750167666786,0.31890572,105780.0,105770.0,0.45110841]
[1750167666997,0.31990572,105780.0,105770.0,0.46056226]
[1750167667206,0.52688372,105780.0,105770.0,0.46056235]
[1750167667431,0.52688363,105780.0,105770.0,0.46156173]
[1750167667651,0.31890572,105780.0,105770.0,0.46156173]
[1750167668255,0.32835876,105780.0,105770.0,0.46156173]
[1750167668519,0.51743041,105780.0,105770.0,0.45210788]
[1750167668735,0.52688363,105780.0,105770.0,0.46156181]
[1750167668949,0.30945286,105780.0,105770.0,0.46156181]
[1750167669408,0.50797773,105780.0,105770.0,0.46156181]
[1750167669610,0.30945286,105780.0,105770.0,0.46156181]
[1750167669817,0.3,105780.0,105770.0,0.46156181]
[1750167670036,0.30945286,105780.0,105770.0,0.46156181]
[1750167670265,0.3,105780.0,105770.0,0.46156181]
[1750167670490,0.30945277,105780.0,105770.0,0.46156181]
[1750167670709,0.31890572,105780.0,105770.0,0.46156181]
[1750167671365,0.30945277,105780.0,105770.0,0.46156181]
[1750167671799,0.31890572,105780.0,105770.0,0.46156181]
[1750167672013,0.50797737,105780.0,105770.0,0.46156181]
[1750167672217,0.5174305,105780.0,105770.0,0.46156181]
[1750167672479,0.31890572,105780.0,105770.0,0.46156181]
[1750167673911,0.51743059,105780.0,105770.0,0.45202796]
[1750167674135,0.51743059,105780.0,105770.0,0.06304181]
[1750167674136,0.98298653,105780.0,105770.0,0.06304181]
[1750167674368,0.67675905,105780.0,105770.0,0.00114181]
[1750167674598,1.07922829,105780.0,105770.0,0.00114181]
[1750167675088,1.24829887,105780.0,105770.0,0.06394181]
[1750167675533,0.92625945,105780.0,105770.0,0.03154181]
[1750167675988,0.92625945,105780.0,105770.0,0.06474181]
[1750167676957,1.00676601,105780.0,105770.0,0.00114181]
[1750167677196,1.15676601,105780.0,105770.0,0.00114181]
[1750167678097,1.15426601,105780.0,105770.0,0.00114181]
[1750167678790,1.15426601,105780.0,105770.0,0.28279412]
[1750167679024,1.1637195,105780.0,105770.0,0.30170208]
[1750167679268,1.17317308,105780.0,105770.0,0.30170208]
[1750167679493,1.17317308,105780.0,105770.0,0.30170146]
[1750167679720,0.97464785,105780.0,105770.0,0.29224752]
[1750167679946,1.1637195,105780.0,105770.0,0.28279367]
[1750167680159,1.1637195,105780.0,105770.0,0.27334019]
[1750167680375,1.14481288,105780.0,105770.0,0.00114181]
[1750167680589,1.25550295,105780.0,105770.0,0.00114181]
[1750167680856,1.25300295,105780.0,105770.0,0.00114181]
[1750167681302,1.15685373,105780.0,105770.0,0.00114181]
[1750167681738,1.18695373,105780.0,105770.0,0.00114181]
[1750167681949,2.16086927,105780.0,105770.0,0.00114181]
[1750167682184,1.75832329,105780.0,105770.0,0.00114181]
[1750167682641,1.96492329,105780.0,105770.0,0.00114181]
[1750167682857,2.03282774,105780.0,105770.0,0.00014181]
[1750167683071,2.03382774,105780.0,105770.0,0.00014181]
[1750167683477,2.03282774,105780.0,105770.0,0.00014181]
[1750167683923,2.03782774,105780.0,105770.0,0.00014181]
[1750167684616,2.03882774,105780.0,105770.0,0.00014181]
[1750167685051,2.03782774,105780.0,105770.0,0.00014181]
[1750167685268,2.06623474,105780.0,105770.0,0.00014181]
[1750167685503,2.06823474,105780.0,105770.0,0.00014181]
[1750167690278,2.06573474,105780.0,105770.0,0.00014181]
[1750167690922,2.21535456,105780.0,105770.0,0.00014181]
[1750167691134,2.15475456,105780.0,105770.0,0.00014181]
[1750167691805,2.21805456,105780.0,105770.0,0.00014181]
[1750167692487,2.15475456,105780.0,105770.0,0.00014181]
[1750167692704,1.75220858,105780.0,105770.0,0.00014181]
[1750167692918,2.05856534,105780.0,105770.0,0.00014181]
[1750167694029,1.59660534,105780.0,105770.0,0.06494181]
[1750167694243,1.73011834,105780.0,105770.0,0.06494181]
[1750167695302,1.70749355,105780.0,105770.0,0.00014181]
[1750167695498,1.80364277,105780.0,105770.0,0.00014181]
[1750167696399,1.82625539,105780.0,105770.0,0.00014181]
[1750167696846,1.88999539,105780.0,105770.0,0.00014181]
[1750167697057,2.13184019,105780.0,105770.0,0.00014181]
[1750167697495,2.48228035,105780.0,105770.0,0.00014181]
[1750167699034,1.91844839,105780.0,105770.0,0.00014181]
[1750167699484,1.85454839,105780.0,105770.0,0.00014181]
[1750167700163,2.00454839,105780.0,105770.0,0.00014181]
[1750167701255,0.20368863,105750.0,105740.0,0.0619]
[1750167701483,0.8014076,105750.0,105740.0,0.0619]
[1750167701923,0.7471246,105750.0,105740.0,0.0619]
[1750167702148,1.0871246,105750.0,105740.0,0.0619]
[1750167702375,0.00945823,105720.0,105710.0,0.27418457]
[1750167702602,0.62976751,105720.0,105710.0,0.28364423]
[1750167703065,0.62976751,105720.0,105710.0,0.35700353]
[1750167703281,0.62976751,105720.0,105710.0,0.35700344]
[1750167703499,0.42167094,105720.0,105710.0,0.35700353]
[1750167703717,0.43117689,105720.0,105710.0,0.36646274]
[1750167703991,0.02842268,105720.0,105710.0,0.36646274]
[1750167704201,0.02842259,105720.0,105710.0,0.37146274]
[1750167704638,0.01896383,105720.0,105710.0,0.37146274]
[1750167704855,0.02842233,105720.0,105710.0,0.37146274]
[1750167705072,0.02842233,105720.0,105710.0,0.37546274]
[1750167705287,0.02842233,105720.0,105710.0,0.29988766]
[1750167705509,0.04733976,105720.0,105710.0,0.29988766]
[1750167705727,0.03788092,105720.0,105710.0,0.29988766]
[1750167705944,0.02842233,105720.0,105710.0,0.29988766]
[1750167706158,0.037881,105720.0,105710.0,0.29988766]
[1750167706375,0.04733976,105720.0,105710.0,0.29988766]
[1750167707033,0.037881,105720.0,105710.0,0.29988766]
[1750167707477,0.02842233,105720.0,105710.0,0.29988766]
[1750167707973,0.03788109,105720.0,105710.0,0.29988766]
[1750167708411,0.037881,105720.0,105710.0,0.29988766]
[1750167708643,0.02842233,105720.0,105710.0,0.29988766]
[1750167708880,0.01896383,105720.0,105710.0,0.29988766]
[1750167709399,0.02842242,105720.0,105710.0,0.29988766]
[1750167709611,0.03788118,105720.0,105710.0,0.46172766]
[1750167710087,0.02842242,105720.0,105710.0,0.46172766]
[1750167710751,0.03788118,105720.0,105710.0,0.46172766]
[1750167710994,0.02842242,105720.0,105710.0,0.46172766]
[1750167711211,0.01896383,105720.0,105710.0,0.46172766]
[1750167711436,0.02842242,105720.0,105710.0,0.46172766]
[1750167711912,0.03788118,105720.0,105710.0,0.46172766]
[1750167713215,0.02842242,105720.0,105710.0,0.46172766]
[1750167713636,0.03788118,105720.0,105710.0,0.46172766]
[1750167713854,0.02842242,105720.0,105710.0,0.46172766]
[1750167714088,0.03788109,105720.0,105710.0,0.46172766]
[1750167714528,0.04733985,105720.0,105710.0,0.46172766]
[1750167714963,0.03788109,105720.0,105710.0,0.46172766]
[1750167715422,0.04733985,105720.0,105710.0,0.46172766]
[1750167716281,0.03788109,105720.0,105710.0,0.46172766]
[1750167716492,0.01896383,105720.0,105710.0,0.46172766]
[1750167716911,0.0284225,105720.0,105710.0,0.46172766]
[1750167717347,0.02842242,105720.0,105710.0,0.46172766]
[1750167717566,0.01896383,105720.0,105710.0,0.46172766]
[1750167717783,0.0284225,105720.0,105710.0,0.46172766]